bitfinex/quotes_SOLUSD_20260120
["timestamp","ask_amount","ask_price","bid_price","bid_amount"]
[1768885611284,4.37916654,133.42,133.39,6.87600709]
[1768885611463,11.87346621,133.44,133.39,2.41977599]
[1768885611777,9.5158518,133.43,133.39,2.41977599]
[1768885612085,5.13668526,133.42,133.39,2.41977599]
[1768885612267,4.37916654,133.45,133.41,2.41977599]
[1768885612472,4.37916654,133.45,133.4,2.41977599]
[1768885612980,4.37916654,133.44,133.4,6.76106144]
[1768885614067,4.37916654,133.44,133.4,4.34128545]
[1768885614566,4.37916654,133.44,133.4,6.76106144]
[1768885616092,4.37916654,133.44,133.41,2.41977599]
[1768885616293,4.37916654,133.44,133.4,6.76106144]
[1768885616480,4.37916654,133.44,133.4,4.34128545]
[1768885616668,4.37916654,133.44,133.4,6.76106144]
[1768885616865,4.37916654,133.44,133.4,4.34128545]
[1768885617078,4.16161093,133.43,133.4,4.34128545]
[1768885617284,4.16161093,133.43,133.4,6.76106144]
[1768885619300,4.16161093,133.43,133.4,4.34128545]
[1768885620691,11.65572927,133.44,133.4,4.34128545]
[1768885620893,4.16161093,133.45,133.41,6.76106144]
[1768885621080,4.16161093,133.45,133.41,4.34128545]
[1768885621587,4.16161093,133.45,133.42,2.41977599]
[1768885621784,166.3,133.49,133.45,4.34128545]
[1768885621785,4.36161093,133.49,133.45,4.34128545]
[1768885621986,4.36161093,133.49,133.45,6.76106144]
[1768885622292,0.2,133.49,133.46,6.76106144]
[1768885622987,4.36161093,133.49,133.46,6.76106144]
[1768885624081,0.2,133.49,133.46,6.76106144]
[1768885624395,0.2,133.49,133.47,4.34128545]
[1768885625088,0.2,133.49,133.47,6.76106144]
[1768885625801,0.2,133.49,133.48,2.41977599]
[1768885626586,4.77875103,133.51,133.48,2.41977599]
[1768885628611,0.6171401,133.51,133.49,2.41977599]
[1768885628898,4.77875103,133.51,133.47,6.7561213]
[1768885629094,4.77875103,133.51,133.48,4.34128545]
[1768885629292,0.6171401,133.51,133.48,4.34128545]
[1768885629601,0.6171401,133.51,133.48,6.7561213]
[1768885629782,0.6171401,133.51,133.48,4.34128545]
[1768885629979,0.2,133.53,133.5,4.34128545]
[1768885631212,0.2,133.53,133.48,4.34128545]
[1768885631213,4.16161093,133.52,133.48,4.34128545]
[1768885634182,4.36161093,133.53,133.49,4.34128545]
[1768885635610,14.26545162,133.53,133.49,4.34128545]
[1768885636204,6.77644678,133.53,133.49,4.34128545]
[1768885637212,14.26540118,133.53,133.49,4.34128545]
[1768885637413,4.16161093,133.52,133.48,4.34128545]
[1768885637602,6.57644678,133.52,133.48,4.34128545]
[1768885637802,4.16161093,133.51,133.47,4.34128545]
[1768885638400,2.61483585,133.53,133.48,4.34128545]
[1768885638599,4.36161093,133.53,133.49,4.34128545]
[1768885639505,6.77644678,133.53,133.49,4.34128545]
[1768885639695,4.36161093,133.53,133.49,4.34128545]
[1768885639891,4.16161093,133.52,133.49,4.34128545]
[1768885640406,4.16161093,133.52,133.47,4.34128545]
[1768885640611,4.16161093,133.51,133.47,6.7561213]
[1768885641090,4.16161093,133.51,133.47,4.34128545]
[1768885641294,4.16161093,133.51,133.47,6.7561213]
[1768885643413,4.16161093,133.51,133.47,2.41483585]
[1768885643626,2.41483585,133.52,133.48,4.0542777]
[1768885643627,4.05420269,133.52,133.48,4.0542777]
[1768885644003,6.46903854,133.52,133.48,4.0542777]
[1768885644411,4.05420269,133.52,133.48,4.0542777]
[1768885644598,4.05420269,133.52,133.49,4.0542777]
[1768885644799,0.2,133.53,133.49,4.0542777]
[1768885645232,0.2,133.53,133.5,4.0542777]
[1768885645401,4.05420269,133.52,133.48,4.0542777]
[1768885646133,4.05420269,133.5,133.46,4.0542777]
[1768885647220,6.46903854,133.5,133.46,4.0542777]
[1768885647913,4.05420269,133.49,133.45,20.4742777]
[1768885648634,4.05420269,133.49,133.45,4.0542777]
[1768885649128,4.05420269,133.48,133.45,4.0542777]
[1768885649519,2.41483585,133.48,133.44,4.0542777]
[1768885649716,4.05420269,133.47,133.44,4.0542777]
[1768885650026,6.46903854,133.48,133.44,4.0542777]
[1768885650510,4.05420269,133.48,133.44,4.0542777]
[1768885651326,6.46903854,133.48,133.44,4.0542777]
[1768885651627,4.05420269,133.48,133.44,4.0542777]
[1768885651819,11.54552187,133.49,133.45,4.0542777]
[1768885652032,13.96035772,133.49,133.45,4.0542777]
[1768885653238,4.05420269,133.48,133.45,4.0542777]
[1768885654555,2.41483585,133.46,133.43,20.4742777]
[1768885654724,2.41483585,133.47,133.44,4.0542777]
[1768885654925,6.46903854,133.47,133.43,20.4742777]
[1768885655124,4.05420269,133.47,133.43,16.42]
[1768885655326,4.05420269,133.47,133.44,4.0542777]
[1768885655631,2.41483585,133.47,133.43,4.0542777]
[1768885655935,4.05420269,133.47,133.43,4.0542777]
[1768885656319,4.05420269,133.47,133.44,4.0542777]
[1768885656634,4.05420269,133.48,133.44,4.0542777]
[1768885656928,6.46903854,133.48,133.44,4.0542777]
[1768885657137,6.46903854,133.48,133.43,4.0542777]
[1768885657138,6.46903854,133.46,133.43,4.0542777]
[1768885657438,4.05420269,133.47,133.44,4.0542777]
[1768885657636,6.46903854,133.48,133.44,4.0542777]
[1768885660034,4.05420269,133.47,133.43,4.0542777]
[1768885660339,2.41483585,133.46,133.43,4.0542777]
[1768885661239,4.05420269,133.47,133.43,4.0542777]
[1768885661416,6.46903854,133.47,133.43,4.0542777]
[1768885661612,2.41483585,133.46,133.43,4.0542777]
[1768885661813,2.41483585,133.47,133.43,4.0542777]
[1768885662130,4.05420269,133.47,133.43,4.0542777]
[1768885662334,2.41483585,133.46,133.43,4.0542777]
[1768885662543,2.41483585,133.44,133.42,4.07446442]
[1768885663258,11.57849032,133.46,133.42,4.07446442]
[1768885663437,2.41483585,133.45,133.42,4.07446442]
[1768885663640,11.57849032,133.46,133.42,4.07446442]
[1768885663937,2.41483585,133.45,133.42,4.07446442]
[1768885665938,2.41483585,133.43,133.41,4.07446442]
[1768885666239,2.41483585,133.42,133.37,16.42]
[1768885666732,4.08524556,133.43,133.37,16.42]
[1768885666938,2.41483585,133.42,133.37,16.42]
[1768885667736,2.41483585,133.41,133.37,16.42]
[1768885668040,11.57996743,133.43,133.38,4.07446442]
[1768885668242,2.41483585,133.42,133.38,4.07446442]
[1768885670642,11.57996743,133.43,133.38,4.07446442]
[1768885670950,2.41483585,133.42,133.38,4.07446442]
[1768885671238,2.35483584,133.41,133.38,4.07446442]
[1768885671420,2.29483583,133.41,133.38,4.07446442]
[1768885671916,2.41483585,133.41,133.38,4.07446442]
[1768885673749,4.31390254,133.38,133.34,4.2483955]
[1768885673921,6.72873839,133.38,133.34,4.2483955]
[1768885674128,4.31390254,133.39,133.34,4.2483955]
[1768885674424,6.72873839,133.39,133.34,4.2483955]
[1768885674748,6.72873839,133.38,133.34,4.2483955]
[1768885676228,4.31390254,133.38,133.34,4.2483955]
[1768885676431,6.72873839,133.38,133.34,4.2483955]
[1768885678651,14.22614249,133.38,133.34,4.2483955]
[1768885679146,7.49704118,133.39,133.35,1.83355965]
[1768885679342,4.31390254,133.39,133.35,1.83355965]
[1768885679836,6.72873839,133.39,133.35,1.83355965]
[1768885680254,4.31390254,133.39,133.35,1.83355965]
[1768885680547,14.22563579,133.39,133.35,1.83355965]
[1768885681731,11.81079994,133.39,133.35,1.83355965]
[1768885682040,14.22563579,133.39,133.35,1.83355965]
[1768885682550,6.72873839,133.39,133.35,1.83355965]
[1768885683037,4.31390254,133.39,133.35,1.83355965]
[1768885683236,14.2257216,133.39,133.35,1.83355965]
[1768885683438,4.31390254,133.38,133.34,1.83355965]
[1768885683633,6.72873839,133.37,133.33,18.35355965]
[1768885683947,6.72873839,133.35,133.33,0.1]
[1768885684245,4.25390251,133.35,133.33,0.1]
[1768885685428,2.41483585,133.36,133.33,0.1]
[1768885685630,26.24295359,133.37,133.3,16.42]
[1768885685631,2.41483585,133.34,133.3,16.42]
[1768885685846,2.41483585,133.33,133.3,16.42]
[1768885686050,4.31390254,133.32,133.28,2.09355968]
[1768885687236,26.2408157,133.38,133.28,0.1]
[1768885687237,6.72873839,133.31,133.28,0.1]
[1768885688931,14.23034816,133.31,133.28,0.1]
[1768885689136,6.72873839,133.3,133.28,0.1]
[1768885689749,4.31390254,133.29,133.28,0.1]
[1768885690049,4.31390254,133.28,133.24,1.99355968]
[1768885690542,6.72873839,133.3,133.25,2.09355968]
[1768885690736,14.23086127,133.3,133.25,2.09355968]
[1768885690940,6.73638723,133.3,133.25,2.09355968]
[1768885691140,4.31390254,133.29,133.25,2.09355968]
[1768885693862,11.81542983,133.31,133.27,2.09355968]
[1768885694856,4.31390254,133.31,133.27,2.09355968]
[1768885695655,11.81469497,133.32,133.28,2.09355968]
[1768885696542,4.31390254,133.32,133.28,2.09355968]
[1768885696750,4.31390254,133.34,133.3,2.09355968]
[1768885697259,4.31390254,133.33,133.29,2.09355968]
[1768885697867,4.31390254,133.32,133.28,2.09355968]
[1768885698361,4.31390254,133.32,133.27,18.53355968]
[1768885698555,4.31390254,133.32,133.27,18.86248469]
[1768885698744,4.31390254,133.32,133.28,2.09355968]
[1768885700660,4.31390254,133.31,133.27,18.53355968]
[1768885700851,4.31390254,133.31,133.27,28.45958498]
[1768885701050,4.31390254,133.31,133.28,2.09355968]
[1768885702460,4.31390254,133.32,133.28,12.01887357]
[1768885702653,4.31390254,133.34,133.3,2.09355968]
[1768885703168,4.31390254,133.34,133.29,4.51604437]
[1768885705554,4.31390254,133.34,133.3,18.53355968]
[1768885708071,9.92178739,133.35,133.3,18.53355968]
[1768885708072,4.10121547,133.35,133.31,2.09355968]
[1768885710167,2.42248469,133.34,133.3,16.44]
[1768885710364,4.10121547,133.33,133.3,16.44]
[1768885711871,4.10121547,133.34,133.3,18.53355968]
[1768885713567,4.10121547,133.34,133.3,28.45775765]
[1768885713753,4.10121547,133.35,133.31,2.09355968]
[1768885714268,4.10121547,133.35,133.3,18.53355968]
[1768885716481,4.10121547,133.35,133.3,20.95604437]
[1768885716684,4.10121547,133.34,133.3,20.95604437]
[1768885717875,11.59995138,133.36,133.32,2.09355968]
[1768885718249,4.10121547,133.37,133.33,18.53355968]
[1768885718466,4.10121547,133.37,133.34,4.51604437]
[1768885718855,4.10121547,133.37,133.34,2.09355968]
[1768885719483,9.91932134,133.39,133.34,4.51604437]
[1768885719484,4.10121547,133.38,133.34,4.51604437]
[1768885720378,4.10121547,133.39,133.35,4.51604437]
[1768885720548,4.10121547,133.39,133.35,2.42248469]
[1768885720754,4.10121547,133.38,133.34,2.09355968]
[1768885721555,4.10121547,133.38,133.33,18.53355968]
[1768885721762,4.10121547,133.37,133.33,16.44]
[1768885721972,4.10121547,133.37,133.33,18.53355968]
[1768885722178,4.10121547,133.37,133.33,26.03365881]
[1768885722372,4.10121547,133.37,133.34,2.09355968]
[1768885722882,6.89583778,133.4,133.34,2.09355968]
[1768885723685,14.39241798,133.4,133.34,2.09355968]
[1768885724064,11.96993329,133.4,133.35,2.09355968]
[1768885724465,4.47335309,133.39,133.35,2.09355968]
[1768885726783,4.47335309,133.35,133.28,2.09355968]
[1768885726967,4.47335309,133.34,133.3,7.50177438]
[1768885727282,4.47335309,133.34,133.29,18.51355968]
[1768885727283,6.83585419,133.34,133.29,26.01588017]
[1768885727466,2.42248469,133.34,133.29,26.01588017]
[1768885728184,2.42248469,133.34,133.29,26.07586376]
[1768885728789,9.92195134,133.35,133.29,26.07586376]
[1768885729084,4.47335309,133.34,133.29,26.07586376]
[1768885731087,6.89583778,133.34,133.29,26.07586376]
[1768885731384,6.89583778,133.33,133.29,16.42]
[1768885731584,4.47335309,133.32,133.29,16.42]
[1768885732691,6.89583778,133.3,133.26,2.15354327]
[1768885732865,6.89583778,133.32,133.27,16.42]
[1768885733071,6.89583778,133.32,133.28,16.42]
[1768885733424,14.39668403,133.32,133.28,16.42]
[1768885734191,4.47335309,133.32,133.28,16.42]
[1768885734380,6.50260267,133.31,133.28,16.42]
[1768885734686,2.42248469,133.29,133.28,16.42]
[1768885734995,6.44260267,133.29,133.23,29.28940177]
[1768885735207,2.42248469,133.28,133.23,23.94531321]
[1768885735491,6.50260267,133.29,133.23,23.94531321]
[1768885735793,6.50260267,133.28,133.22,23.94618143]
[1768885736393,6.50260267,133.27,133.22,23.94618143]
[1768885736588,4.02011796,133.27,133.23,0.06000002]
[1768885736796,6.44260265,133.27,133.23,0.06000002]
[1768885737707,4.02011796,133.27,133.23,0.06000002]
[1768885740600,4.08011798,133.27,133.23,0.06000002]
[1768885740971,6.50260267,133.27,133.23,0.06000002]
[1768885741310,6.44260261,133.27,133.23,0.06000002]
[1768885742301,4.02011792,133.27,133.23,0.06000002]
[1768885742483,6.44260261,133.27,133.23,0.06000002]
[1768885742687,16.44,133.32,133.21,0.1]
[1768885742688,2.42248469,133.28,133.21,0.1]
[1768885742997,4.98055856,133.27,133.21,0.1]
[1768885743199,6.50260267,133.23,133.21,0.1]
[1768885744114,4.08011798,133.23,133.21,0.1]
[1768885744393,6.50260267,133.23,133.21,0.1]
[1768885744602,6.50260267,133.22,133.2,0.1]
[1768885744801,6.44260264,133.21,133.18,16.54]
[1768885745294,4.02011795,133.21,133.18,16.54]
[1768885745494,7.5058918,133.23,133.18,0.1]
[1768885745798,2.42248469,133.22,133.18,0.1]
[1768885746694,2.42248469,133.22,133.18,0.28000011]
[1768885746896,6.50260267,133.22,133.18,0.28000011]
[1768885747197,6.50260267,133.21,133.18,0.1]
[1768885747391,4.08011798,133.21,133.18,0.1]
[1768885749310,6.50260267,133.21,133.18,0.1]
[1768885749802,14.00961563,133.21,133.18,0.1]
[1768885750007,4.08011798,133.2,133.18,0.1]
[1768885750210,4.08011798,133.18,133.17,0.1]
[1768885750779,6.50260267,133.19,133.17,0.1]
[1768885750981,6.50662303,133.19,133.17,0.1]
[1768885751805,4.08011798,133.17,133.14,0.1]
[1768885752101,4.08011798,133.16,133.14,0.1]
[1768885752321,6.50662303,133.16,133.14,0.1]
[1768885752615,4.08011798,133.14,133.1,0.28000011]
[1768885752806,6.50662303,133.14,133.1,0.28000011]
[1768885753110,4.08011798,133.16,133.11,7.51247071]
[1768885753290,2.42650505,133.15,133.11,7.89247082]
[1768885753497,6.50662303,133.15,133.11,7.89247082]
[1768885754019,6.50662303,133.13,133.09,7.51335595]
[1768885754422,4.08011798,133.13,133.09,7.51335595]
[1768885754716,6.50662303,133.13,133.09,7.89335606]
[1768885754918,4.08011798,133.11,133.08,16.44]
[1768885755094,37.54264627,133.19,133.05,0.38000011]
[1768885755095,6.50662303,133.1,133.05,0.38000011]
[1768885755298,6.50662303,133.1,133.04,23.5773405]
[1768885755299,2.42650505,133.11,133.06,0.44000016]
[1768885755498,7.51153554,133.13,133.07,0.44000016]
[1768885755712,2.42650505,133.12,133.07,0.44000016]
[1768885755895,7.77059361,133.21,133.09,0.44000016]
[1768885756101,2.42650505,133.14,133.09,0.44000016]
[1768885756296,85.59790556,133.2,133.09,0.44000016]
[1768885756616,2.42650505,133.14,133.09,7.95346776]
[1768885757302,20.52011798,133.19,133.11,0.44000016]
[1768885757621,20.52011798,133.19,133.09,7.95346776]
[1768885757622,4.08011798,133.14,133.09,7.95346776]
[1768885757799,4.08011798,133.14,133.09,10.37997281]
[1768885758118,4.08011798,133.15,133.1,2.86650521]
[1768885758505,4.08011798,133.15,133.1,0.44000016]
[1768885758698,4.08011798,133.15,133.1,10.37934679]
[1768885759301,4.08011798,133.13,133.09,7.51353544]
[1768885759811,4.08011798,133.13,133.1,7.51295236]
[1768885760010,39.96353011,133.21,133.1,7.51295236]
[1768885760011,4.08011798,133.17,133.11,2.86650521]
[1768885760220,4.08011798,133.16,133.11,2.86650521]
[1768885760522,6.50662303,133.16,133.11,64.36650521]
[1768885760723,4.08011798,133.16,133.11,71.87866505]
[1768885760909,4.08011798,133.16,133.12,2.86650521]
[1768885761502,4.08011798,133.14,133.1,9.93953089]
[1768885762523,4.08011798,133.14,133.09,19.22368459]
[1768885762524,4.08011798,133.16,133.11,10.37907251]
[1768885762727,6.50662303,133.14,133.1,7.51299924]
[1768885763102,4.08011798,133.14,133.1,7.51299924]
[1768885763517,4.3573461,133.13,133.09,10.38008957]
[1768885763710,4.3573461,133.13,133.09,71.88008957]
[1768885764024,4.3573461,133.13,133.1,2.42650505]
[1768885764816,4.3573461,133.13,133.09,63.92650505]
[1768885765015,4.3573461,133.13,133.09,71.44021194]
[1768885765220,4.3573461,133.13,133.1,7.51309045]
[1768885765807,4.3573461,133.13,133.09,71.44013791]
[1768885766126,4.3573461,133.13,133.1,7.51307764]
[1768885767405,4.3573461,133.14,133.1,28.72245271]
[1768885767913,4.3573461,133.14,133.1,29.16245287]
[1768885768308,4.3573461,133.14,133.1,7.9530778]
[1768885769121,4.3573461,133.14,133.1,10.37958285]
[1768885769418,4.3573461,133.14,133.1,29.16245287]
[1768885770124,4.3573461,133.15,133.11,0.44000016]
[1768885770513,4.3573461,133.15,133.1,29.16245287]
[1768885770709,4.3573461,133.16,133.11,2.42650505]
[1768885770913,4.3573461,133.16,133.1,43.19594782]
[1768885771115,4.3573461,133.16,133.11,2.42650505]
[1768885771420,4.3573461,133.16,133.1,43.19594782]
[1768885771718,4.3573461,133.16,133.11,2.42650505]
[1768885772214,4.3573461,133.16,133.1,43.19594782]
[1768885772515,4.3573461,133.16,133.12,7.51201923]
[1768885773123,4.3573461,133.15,133.12,7.51201923]
[1768885773322,4.2973461,133.15,133.12,7.51201923]
[1768885773626,2.42650505,133.15,133.11,69.01232083]
[1768885774439,2.42650505,133.14,133.11,61.5]
[1768885774614,2.42650505,133.16,133.11,69.51257932]
[1768885774808,0.8,133.19,133.11,69.51257932]
[1768885775011,2.42650505,133.16,133.11,8.01257932]
[1768885775410,4.3573461,133.15,133.11,8.01257932]
[1768885775712,2.42650505,133.16,133.12,0.50000016]
[1768885775908,4.3573461,133.16,133.11,10.43908437]
[1768885776128,6.78385115,133.16,133.11,8.01257932]
[1768885776331,4.3573461,133.13,133.1,77.96]
[1768885776630,4.3573461,133.14,133.1,78.46000016]
[1768885776936,4.3573461,133.14,133.1,77.96]
[1768885777735,4.3573461,133.14,133.11,7.5125676]
[1768885779330,4.3573461,133.14,133.1,7.51296275]
[1768885782908,4.13732586,133.13,133.06,5.34408856]
[1768885783110,4.13732586,133.11,133.09,7.51350886]
[1768885783317,4.13732586,133.13,133.09,7.51350886]
[1768885784431,4.13732586,133.15,133.1,0.50000016]
[1768885784634,6.56383091,133.15,133.1,0.50000016]
[1768885784826,6.56383091,133.15,133.11,7.51258357]
[1768885785025,4.13732586,133.15,133.11,7.51258357]
[1768885785211,4.13732586,133.15,133.11,8.01258373]
[1768885785814,4.13732586,133.15,133.11,88.29404267]
[1768885786020,4.13732586,133.15,133.11,90.72054772]
[1768885786233,6.56383091,133.16,133.11,90.72054772]
[1768885786535,6.56383091,133.16,133.11,88.29404267]
[1768885786719,4.13732586,133.15,133.11,90.72054772]
[1768885786921,4.13732586,133.15,133.11,88.29404267]
[1768885787417,4.13732586,133.15,133.11,90.72054772]
[1768885787614,4.13732586,133.15,133.11,90.22054756]
[1768885787832,4.13732586,133.15,133.11,69.01258357]
[1768885790728,4.13732586,133.15,133.11,7.51258357]
[1768885792638,6.56383091,133.15,133.11,7.51258357]
[1768885793157,2.42650505,133.15,133.11,7.51258357]
[1768885793490,4.24058851,133.14,133.11,7.51258357]
[1768885794369,7.50927614,133.17,133.12,0.50000016]
[1768885794531,9.46621796,133.16,133.13,7.51145496]
[1768885794848,4.24058851,133.16,133.13,7.51145496]
[1768885795029,9.46590595,133.15,133.12,7.51190806]
[1768885795230,4.24058851,133.15,133.12,7.51190806]
[1768885796055,4.24058851,133.15,133.11,0.50000016]
[1768885796642,4.24058851,133.15,133.11,8.01235061]
[1768885797361,4.24058851,133.13,133.1,23.97290328]
[1768885797534,4.1805103,133.13,133.1,23.97290328]
[1768885798459,4.1805103,133.13,133.11,7.5125455]
[1768885799560,4.1805103,133.13,133.11,7.48254551]
[1768885799930,4.1805103,133.13,133.1,7.513148]
[1768885800453,6.66709356,133.15,133.1,29.28260144]
[1768885800657,4.24058851,133.13,133.1,7.513148]
[1768885800857,4.24058851,133.12,133.08,62.06007837]
[1768885801156,4.24058851,133.12,133.09,7.51359372]
[1768885801353,4.24058851,133.12,133.09,9.94009877]
[1768885801751,4.24058851,133.15,133.1,2.98658342]
[1768885801935,4.24058851,133.16,133.11,10.49916699]
[1768885802253,9.47263511,133.15,133.11,8.07266194]
[1768885802455,4.24058851,133.15,133.11,8.07266194]
[1768885803259,4.24058851,133.15,133.04,23.5773405]
[1768885803431,4.24058851,133.15,132.97,4.01389163]
[1768885803432,2.42650505,133.05,132.97,4.01389163]
[1768885803780,2.42650505,133.07,132.97,4.01389163]
[1768885803781,2.42650505,133.0,132.98,16.46]
[1768885804063,7.51145496,133.13,133.03,2.42650505]
[1768885804240,2.42650505,133.1,133.05,7.65766712]
[1768885804553,5.22367081,133.09,133.06,16.46]
[1768885804730,2.42650505,133.1,133.06,16.46]
[1768885805160,2.42650505,133.09,133.07,16.46]
[1768885805553,7.5130803,133.11,133.07,16.46]
[1768885805748,7.64700286,133.1,133.08,16.46]
[1768885805952,2.42650505,133.09,133.05,4.11107682]
[1768885806262,2.42650505,133.09,133.06,16.46]
[1768885807169,7.5130803,133.11,133.06,16.46]
[1768885807459,7.64498097,133.1,133.06,16.46]
[1768885807642,2.42650505,133.1,133.06,16.46]
[1768885807834,2.42650505,133.1,133.06,20.57107682]
[1768885808342,2.42650505,133.12,133.07,4.11107682]
[1768885808554,2.42650505,133.13,133.07,6.53758187]
[1768885808754,2.42650505,133.13,133.08,4.11107682]
[1768885808948,2.42650505,133.12,133.09,16.46]
[1768885809156,2.42650505,133.12,133.08,4.11107682]
[1768885809469,2.42650505,133.12,133.09,16.46]
[1768885809962,7.51190519,133.13,133.1,16.46]
[1768885810265,2.42650505,133.11,133.1,16.46]
[1768885811160,7.51203997,133.12,133.1,16.46]
[1768885811466,2.42650505,133.11,133.1,16.46]
[1768885811666,7.51194818,133.13,133.1,16.46]
[1768885812037,2.42650505,133.11,133.1,16.46]
[1768885812655,2.42650505,133.12,133.1,16.46]
[1768885812856,2.42915818,133.12,133.1,16.46]
[1768885813062,26.28219568,133.17,133.1,16.46]
[1768885813243,2.42915818,133.12,133.1,16.46]
[1768885814153,2.42915818,133.11,133.07,11.62566977]
[1768885814358,2.42915818,133.11,133.08,16.46]
[1768885814558,2.42915818,133.12,133.09,16.46]
[1768885814765,18.77660413,133.15,133.09,16.46]
[1768885814951,5.21439071,133.14,133.09,16.46]
[1768885815152,2.42915818,133.11,133.09,16.46]
[1768885815746,2.42915818,133.1,133.06,7.51535989]
[1768885816073,2.42915818,133.1,133.07,16.46]
[1768885817675,7.51145496,133.13,133.07,23.97475916]
[1768885817968,2.42915818,133.11,133.07,23.97475916]
[1768885818169,2.42915818,133.09,133.08,16.46]
[1768885818549,2.42915818,133.1,133.08,16.46]
[1768885818742,26.29009238,133.13,133.08,16.46]
[1768885818944,2.42915818,133.1,133.08,16.46]
[1768885819145,2.42915818,133.1,133.09,16.46]
[1768885819368,9.94231849,133.1,133.08,16.46]
[1768885819544,2.42915818,133.09,133.05,20.57107682]
[1768885819941,7.51316031,133.1,133.05,11.62702123]
[1768885820260,2.42915818,133.09,133.05,28.08702123]
[1768885820570,4.85831637,133.09,133.05,28.08702123]
[1768885820977,2.42915818,133.08,133.05,4.11107682]
[1768885821169,2.42915818,133.08,133.05,16.46]
[1768885821472,2.42915819,133.09,133.05,16.46]
[1768885821676,2.42915818,133.08,133.05,16.46]
[1768885823075,2.42915819,133.09,133.04,4.11107682]
[1768885823076,2.42915818,133.07,133.04,4.11107682]
[1768885824469,7.51385741,133.09,133.04,11.62758065]
[1768885824470,2.42915818,133.08,133.04,11.62758065]
[1768885824971,2.42915819,133.06,133.04,11.62758065]
[1768885826457,2.4048666,133.12,133.05,4.28380848]
[1768885826660,2.4048666,133.12,133.07,4.28380848]
[1768885826661,2.42915818,133.11,133.07,4.28380848]
[1768885827167,12.34604401,133.12,133.07,4.28380848]
[1768885827368,2.42915818,133.11,133.07,4.28380848]
[1768885827979,12.34604401,133.12,133.07,4.28380848]
[1768885828476,12.34604401,133.12,133.07,11.79856281]
[1768885829160,2.4048666,133.12,133.08,4.28380848]
[1768885829361,2.42915818,133.12,133.08,4.28380848]
[1768885830053,9.91652723,133.13,133.08,4.28380848]
[1768885830368,2.42915818,133.13,133.09,4.28380848]
[1768885830877,9.91610904,133.14,133.09,4.28380848]
[1768885830878,4.83402478,133.14,133.1,4.28380848]
[1768885831787,2.4048666,133.14,133.1,4.28380848]
[1768885832086,2.42915818,133.13,133.1,4.28380848]
[1768885832263,4.83402478,133.12,133.08,4.28380848]
[1768885832462,2.4048666,133.12,133.08,4.28380848]
[1768885832661,2.42915818,133.11,133.08,4.28380848]
[1768885833359,9.91699427,133.12,133.08,4.28380848]
[1768885833773,12.34615245,133.12,133.08,4.28380848]
[1768885833974,2.42915818,133.1,133.07,4.28380848]
[1768885834183,4.83402478,133.11,133.07,4.28380848]
[1768885836386,12.34669875,133.11,133.07,4.28380848]
[1768885837365,2.42915818,133.1,133.05,4.28380848]
[1768885837579,2.42915818,133.09,133.05,4.28380848]
[1768885837781,7.51267397,133.11,133.05,6.71296666]
[1768885838088,4.83402478,133.1,133.06,4.28380848]
[1768885839059,2.4048666,133.1,133.06,4.28380848]
[1768885839270,2.42915818,133.11,133.07,4.28380848]
[1768885839575,9.91695841,133.12,133.07,4.28380848]
[1768885839888,2.42915818,133.11,133.07,4.28380848]
[1768885840381,2.42915818,133.1,133.07,4.28380848]
[1768885840576,4.83402478,133.11,133.07,4.28380848]
[1768885841364,4.83402478,133.11,133.07,11.79860763]
[1768885841584,2.4048666,133.11,133.07,11.79860763]
[1768885841791,4.83402478,133.11,133.07,11.79860763]
[1768885842490,2.4048666,133.11,133.07,11.79860763]
[1768885842667,4.83402478,133.11,133.07,11.79860763]
[1768885842864,2.4048666,133.13,133.08,4.26214696]
[1768885843089,7.63540807,133.12,133.08,4.26214696]
[1768885843276,2.42915818,133.12,133.08,4.26214696]
[1768885843587,4.83402478,133.12,133.08,4.26214696]
[1768885844386,2.4048666,133.12,133.08,4.26214696]
[1768885844684,4.83402478,133.12,133.08,4.26214696]
[1768885844859,12.34608499,133.12,133.08,4.26214696]
[1768885845061,9.91692681,133.12,133.08,4.26214696]
[1768885845376,4.83402478,133.12,133.08,4.26214696]
[1768885845897,12.34609913,133.12,133.08,4.26214696]
[1768885847492,5.21467232,133.11,133.08,4.26214696]
[1768885847793,12.34609913,133.12,133.08,4.26214696]
[1768885848008,5.21459511,133.11,133.08,4.26214696]
[1768885848168,12.34609913,133.12,133.08,4.26214696]
[1768885848371,5.21459678,133.11,133.08,4.26214696]
[1768885848670,12.34609913,133.12,133.08,4.26214696]
[1768885848874,7.64379591,133.11,133.08,4.26214696]
[1768885849074,2.42915818,133.11,133.08,4.26214696]
[1768885849285,12.34609913,133.12,133.08,4.26214696]
[1768885849488,5.21431914,133.11,133.08,4.26214696]
[1768885849687,12.34609913,133.12,133.08,4.26214696]
[1768885849880,5.21431914,133.11,133.08,4.26214696]
[1768885850197,2.36915817,133.11,133.08,4.26214696]
[1768885850978,12.34609913,133.12,133.08,4.26214696]
[1768885851296,5.21448029,133.11,133.08,4.26214696]